[Event "20th Delhi GM Open 2023"]
[Site "New Delhi"]
[Date "2023.03.25"]
[Round "4.3"]
[White "Pantsulaia, Levan"]
[Black "Daaevik Wadhawan"]
[Result "1/2-1/2"]
[ECO "A09"]
[WhiteElo "2597"]
[BlackElo "1886"]
[Annotator "TA"]
[PlyCount "76"]
[EventDate "2023.03.23"]
[EventType "swiss"]
[EventCountry "IND"]
[SourceTitle "playchess.com"]
[Source "ChessBase"]
[SourceQuality "1"]
[TimeControl "5400+30"]

{[%evp 9,76,0,23,20,19,21,74,83,103,107,107,65,67,69,81,57,99,52,66,41,97,-470,43,32,47,46,52,83,89,-67,-77,-72,-62,-71,-63,-122,-80,-141,-154,-168,-183,-185,-172,-210,-196,-230,-205,-203,-224,-200,-198,-215,-203,-207,-211,-196,-200,-176,-178,-262,-233,-241,-8,-8,0,0,0,0,0]} 1. Nf3 {[%emt 0:00:04]} d5 {[%emt 0:00:26]} 2. c4 {[%emt 0:00:15]} d4 {[%emt 0:00:43]} 3. b4 {[%emt 0:00:25]} Bg4 {[%emt 0:00:02]} 4. Qb3 {[%emt 0:02:24]} a5 {[%emt 0:01:55]} 5. b5 {[%emt 0:01:34]} a4 {[%emt 0:00:39]} 6. Qd3 {[%emt 0:01:14] A09: Réti Opening: 1 Nf3 d5 2 c4.} c5 {[%emt 0:00:09]} 7. h3 $1 {[%emt 0:06:03]} Bc8 {[%emt 0:11:53]} (7... Bh5 $11) 8. e3 $16 {[%emt 0:00:57][%cal Re3d4] White is better.} dxe3 {[%emt 0:02:22]} 9. Qxd8+ {[%emt 0:03:27]} (9. fxe3 Qc7 $14) 9... Kxd8 {[%emt 0:00:02]} 10. fxe3 {[%emt 0:00:14]} Nd7 {[%emt 0:03:51]} 11. d4 {[%emt 0:00:57]} e6 {[%emt 0:01:22]} 12. Nc3 {[%emt 0:04:39] [#]} f6 $146 {[%emt 0:02:25]} ({Predecessor:} 12... Ngf6 13. Be2 cxd4 14. exd4 Bb4 15. Bd2 b6 16. O-O Ke7 17. a3 Bd6 18. Bd1 Bb7 19. Nxa4 {1-0 Pantsulaia,L (2609)-Arhan,C (2126) Bikaner op 1st 2022 (4)}) 13. a3 {[%emt 0:00:58] White is more active.} (13. Bd3 $16) 13... Nh6 {[%emt 0:04:25]} 14. Bb2 {[%emt 0:03:40]} cxd4 {[#]} (14... b6 $14) 15. Kf2 $2 {[%mdl 8192]} Nf5 $2 (15... dxc3 $19 16. Bxc3 Nc5) 16. exd4 $14 {[%emt 0:06:45] Threatens to win with g4.} e5 $1 {[%emt 0:16:26]} 17. Nd5 {[%emt 0:07:45]} exd4 {[%emt 0:05:25]} 18. g4 {[%emt 0:05:00]} (18. Nxd4 Bc5 19. Rd1 Ne5 $11) (18. Bxd4 Nxd4 19. Nxd4 Bc5 $17) 18... Ne3 {[%emt 0:10:30]} 19. Nxe3 {[%emt 0:05:06]} (19. Bxd4 $6 Nc2 20. Rd1 Bxa3 $11) (19. Nxd4 $16 Nxd5 20. Ne6+ (20. cxd5 Ne5 $11) 20... Ke7 21. cxd5) 19... dxe3+ $15 {[%emt 0:00:06]} 20. Kxe3 {[%emt 0:00:08]} Nc5 {[%emt 0:02:38]} 21. Rd1+ {[%emt 0:13:23]} Kc7 {[%emt 0:00:48]} 22. Rg1 {[%emt 0:05:48]} (22. Bd3 $15) 22... Nb3 {[%emt 0:02:32]} 23. Nd4 {[%emt 0:15:10]} (23. Kd3 $142) 23... Bc5 $17 {[%emt 0:01:14] aiming for ...Rd8.} 24. Bg2 {[%emt 0:00:01]} Be6 $1 {[%emt 0:09:09][%cal Oa8d8] ...Rad8! would be deadly.} 25. Kf4 {[%emt 0:00:15]} Bf7 {[%emt 0:07:36]} (25... Bxc4 26. Rc1 Na5 27. Bc3 $11) 26. Rge1 {[%emt 0:02:11][%cal Og2b7]} Rhe8 $1 {[%emt 0:00:36]} (26... Bxc4 27. Rc1 Bd6+ 28. Ke3 $11) (26... Bd6+ 27. Kf3 Rhd8 28. Nf5 $17 (28. Ne6+ Bxe6 29. Rxe6 Bxa3 $11 {[%mdl 64] Discovered Attack})) 27. Nf5 {[%emt 0:03:03]} Rxe1 {[%emt 0:05:36]} (27... Bxc4 28. Nxg7 Rxe1 29. Rxe1 $15) 28. Rxe1 {[%emt 0:00:02]} Rd8 {[%emt 0:00:00] Prevents Bd5.} (28... Bxc4 29. Nxg7 Rd8 30. Re4 $15 (30. Bxf6 Rd2 $17)) 29. Bd5 {[%emt 0:01:51]} ({Reject} 29. Nxg7 Rd2 30. Bxf6 Rxg2 $19) 29... Bxd5 {[%emt 0:01:43]} 30. cxd5 {[%emt 0:00:04]} g5+ {[%emt 0:00:09]} ({And not} 30... Rxd5 31. Nxg7 Kb6 32. Ne6 $17) 31. Kf3 {[%emt 0:00:26]} Rxd5 {[%emt 0:00:28]} 32. Re6 {[%emt 0:07:12]} Rd3+ {[%emt 0:04:21]} 33. Ke4 {[%emt 0:00:01] [#]} Rd2 {[%emt 0:00:05]} ({Stronger than} 33... Rxh3 34. Rxf6 Kc8 35. b6 $15) 34. Bxf6 {[%emt 0:00:09]} (34. Bc3 $142 Re2+ 35. Kd5 Rxe6 36. Kxe6) 34... Bxa3 $19 {[%emt 0:00:36]} 35. Be5+ {[%emt 0:00:57] [#]} Kd7 $2 {[%emt 0:00:21]} ({Better is} 35... Kd8 $1 $19 {...Bb2 is the strong threat.} 36. Rh6 Nc5+ 37. Ke3 Bc1) 36. Rh6 $11 {[%emt 0:00:03] The position is equal.} Re2+ {[%emt 0:02:44]} 37. Kd5 {[%emt 0:00:13]} Rd2+ {[%emt 0:00:44]} 38. Kc4 {[%emt 0:01:27]} Rc2+ {[%emt 0:00:32] Weighted Error Value: White=0.39/Black=0.34} 1/2-1/2

[Event "20th Delhi GM Open 2023"]
[Site "New Delhi"]
[Date "2023.03.25"]
[Round "4.4"]
[White "Negi, Virender Singh"]
[Black "Kobalia, Mikhail"]
[Result "0-1"]
[ECO "A21"]
[WhiteElo "1894"]
[BlackElo "2577"]
[Annotator "TA"]
[PlyCount "70"]
[EventDate "2023.03.23"]
[EventType "swiss"]
[EventCountry "IND"]
[SourceTitle "playchess.com"]
[Source "ChessBase"]
[SourceQuality "1"]
[TimeControl "5400+30"]

{[%evp 16,70,12,13,51,39,60,13,31,0,0,0,32,7,37,-49,-46,-40,-35,-47,-18,-22,-20,-87,-18,-20,0,0,0,0,0,0,17,0,0,-42,-42,-56,-51,-41,-35,-71,-70,-71,-65,-68,-76,-75,-75,-82,-31,-108,-109,-98,-108,-136,-97]} 1. Nf3 {[%emt 0:00:05]} d6 {[%emt 0:04:41]} 2. c4 {[%emt 0:00:18]} f5 {[%emt 0:01:57]} 3. Nc3 {[%emt 0:01:59]} Nf6 {[%emt 0:00:05]} 4. g3 {[%emt 0:00:16]} e5 {[%emt 0:00:35]} 5. d3 {[%emt 0:00:05]} g6 {[%emt 0:00:05]} 6. Bg2 {[%emt 0:00:04]} Bg7 {[%emt 0:00:03]} 7. O-O {[%emt 0:00:05]} O-O {[%emt 0:00:03]} 8. Rb1 {[%emt 0:00:52]} Nh5 {[%emt 0:00:45]} 9. Bd2 {[%emt 0:01:28]} f4 {[%emt 0:00:27] A21: English Opening: 1...e5 2 Nc3.} 10. b4 {[%emt 0:01:51]} g5 {[%emt 0:00:09]} 11. b5 {[%emt 0:03:20]} (11. h3 $1 $14 {is superior.}) 11... g4 {[%emt 0:03:14] The position is equal.} 12. Ne1 {[%emt 0:00:35]} Nd7 {[%emt 0:00:06] [#]} 13. Ne4 $146 {[%emt 0:01:27]} ({Predecessor:} 13. Nd5 Nc5 14. Bc3 Ne6 15. a4 Ng5 16. gxf4 exf4 17. Bxg7 Kxg7 18. Nc3 f3 19. exf3 gxf3 20. Bxf3 Nxf3+ 21. Nxf3 Bg4 {0-1 Bodicker,R (1980)-Devallee,J (2246) Avoine op 30th 2015 (1)}) 13... Nhf6 {[%emt 0:02:33]} 14. Nxf6+ {[%emt 0:06:31]} ({Much worse is} 14. gxf4 exf4 15. Qc1 Nxe4 16. Bxe4 Be5 $11) 14... Qxf6 {[%emt 0:00:14]} 15. Bc3 {[%emt 0:00:35]} ({White should play} 15. Bd5+ $14 Kh8 16. Ng2) 15... Nc5 $15 {[%emt 0:03:44]} 16. gxf4 {[%emt 0:16:53]} Qxf4 {[%emt 0:07:28]} 17. Bd5+ {[%emt 0:07:00]} Kh8 (17... Be6 {is more complex.} 18. Bb4 Bxd5 19. cxd5 e4) 18. Ng2 Qg5 {[%emt 0:08:05]} (18... Qh6 {is interesting.} 19. Qd2 Qh3 20. Qe3 Be6) 19. Bd2 {[%emt 0:10:51]} (19. Qd2 $11 Qh5 20. d4) 19... Qg6 {[%emt 0:05:09]} (19... Qh5 $17) 20. Be3 $11 {[%emt 0:01:53]} Nd7 {[%emt 0:16:47]} (20... a6 {seems wilder.} 21. a4 Qh5 22. f3 axb5 23. Bxc5 dxc5 24. axb5 gxf3 25. Bxf3 Bg4) 21. f4 {[%emt 0:08:32]} gxf3 {[%emt 0:00:00]} 22. Bxf3 {[%emt 0:01:11]} Nf6 {[%emt 0:00:00]} 23. Kh1 {[%emt 0:00:16]} Qe8 {[%emt 0:08:50]} (23... a6 $5 {[%cal Ra6b5]}) 24. Bg1 {[%emt 0:03:26]} a6 {[%emt 0:05:55]} 25. b6 {[%emt 0:06:59]} c6 {[%emt 0:02:26]} 26. e4 {[%emt 0:00:18]} Bh3 {[%emt 0:01:25]} 27. Qe2 {[%emt 0:03:51]} Qe6 {[%emt 0:01:13]} 28. d4 {[%emt 0:03:33]} exd4 {[%emt 0:03:42]} 29. Bxd4 {[%emt 0:00:40]} Nd7 {[%emt 0:00:59]} 30. Bxg7+ {[%emt 0:01:12]} Kxg7 {[%emt 0:00:03]} 31. Rg1 {[%emt 0:00:42] [#] Nf4+ is the strong threat.} Kh8 $1 {[%emt 0:00:22] Black is more active.} 32. Ne3 {[%emt 0:02:37]} Ne5 {[%emt 0:00:17] Prevents Ng4.} (32... Qe5 $17) 33. Bg4 {[%emt 0:01:13]} (33. Bg2 $1 $15) 33... Bxg4 $17 {[%emt 0:04:03]} 34. Nxg4 {[%emt 0:00:06]} Qxc4 {[%emt 0:01:47]} 35. Qe3 {[%emt 0:05:04]} Rae8 {[%emt 0:04:12] Weighted Error Value: White=0.21 (precise) /Black=0.14 (very precise)} (35... Qxa2 $2 36. Nxe5 dxe5 37. Qg5 $18) 0-1

[Event "20th Delhi GM Open 2023"]
[Site "New Delhi"]
[Date "2023.03.25"]
[Round "4.5"]
[White "Mchedlishvili, Mikheil"]
[Black "Badamundi Tapan"]
[Result "1-0"]
[ECO "C02"]
[WhiteElo "2569"]
[BlackElo "1862"]
[Annotator "TA"]
[PlyCount "91"]
[EventDate "2023.03.23"]
[EventType "swiss"]
[EventCountry "IND"]
[SourceTitle "playchess.com"]
[Source "ChessBase"]
[SourceQuality "1"]
[TimeControl "5400+30"]

{[%evp 12,91,1,0,86,67,95,90,139,113,159,151,173,177,235,231,226,147,146,130,149,152,217,218,247,225,252,205,265,209,247,241,256,189,300,201,602,585,586,533,1120,1083,1056,1072,1030,829,821,800,1136,1058,1020,931,1143,920,895,857,752,444,444,426,683,530,1118,618,974,721,662,605,625,566,1582,1422,2382,2230,1911,1560,1527,1560,1454,1420,1347,1283]} 1. e4 {[%emt 0:00:06]} e6 {[%emt 0:00:05]} 2. d4 {[%emt 0:00:25]} d5 {[%emt 0:00:21]} 3. e5 {[%emt 0:00:45]} c5 {[%emt 0:00:21]} 4. c3 {[%emt 0:00:21]} Qb6 {[%emt 0:01:26]} 5. Nf3 {[%emt 0:00:53]} Nc6 {[%emt 0:00:42]} 6. a3 {[%emt 0:01:08]} f6 {[%emt 0:14:18]} 7. b4 {[%emt 0:02:59]} cxd4 {[%emt 0:01:13] C02: French: Advance Variation.} (7... c4 $11 {remains equal.}) 8. cxd4 $16 {[%emt 0:00:45]} Nge7 {[%emt 0:01:32]} 9. Bd3 {[%emt 0:03:03] [#]} f5 $146 {[%emt 0:09:55]} (9... Nxd4 $2 10. Nxd4 fxe5 11. Qh5+ g6 12. Qxe5 $18) (9... fxe5 $142 10. dxe5 a6) ({Predecessor:} 9... Bd7 10. Bb2 Ng6 11. O-O Be7 12. Nc3 O-O 13. Na4 Qd8 14. exf6 Bxf6 15. Nc5 Bc8 {0-1 Lukovic,V (2411)-Timofeev,A (2583) Titled Tuesday intern op 28th Sept blitz 2021 (6)}) 10. Nc3 {[%emt 0:01:50][%cal Bb1c3,Bc3e2,Be2f4][%mdl 32]} a6 {[%emt 0:09:46]} (10... Ng6 $142) 11. h4 {[%emt 0:02:58] White is more active.} Ng8 {[%emt 0:09:20]} 12. Rb1 Nh6 (12... Qd8 $142 13. Bg5 Be7) 13. Bxh6 $18 {[%emt 0:17:23]} gxh6 {[%emt 0:03:05]} 14. O-O {[%emt 0:01:22][%cal Od3f5]} Qd8 {[%emt 0:11:55]} (14... Nxd4 $2 15. Nxd4 Bg7 16. Bxf5 Bxe5 17. Qh5+ Kd8 18. Nxe6+ Bxe6 19. Bxe6 Bxc3 20. Qxd5+ Kc7 21. Rfc1 $18) 15. Ne2 {[%emt 0:03:08]} Rg8 {[%emt 0:01:17]} 16. g3 {[%emt 0:01:09]} Be7 {[%emt 0:04:35]} (16... Bd7 $16 17. Qd2 Rg4) 17. Qd2 {[%emt 0:01:49]} Rg6 {[%emt 0:01:22]} 18. Nf4 {[%emt 0:01:11]} Rg4 {[%emt 0:01:51]} 19. Be2 {[%emt 0:01:42]} Bd7 {[%emt 0:06:32]} 20. Rfd1 {[%emt 0:04:41]} Kf7 {[%emt 0:02:56]} 21. Ne1 {[%emt 0:01:56][%cal Bf3e1,Be1g2,Bg2f4,Bf4d5][%mdl 32] A dynamic duo of knights.} Rg8 {[%emt 0:00:14]} 22. Neg2 {[%emt 0:01:10][%cal Of4e6]} Na7 {[%emt 0:07:15]} (22... Kg7 $142 23. Qe3 Kh8) 23. Bf3 {[%emt 0:01:23][%cal Of4d5] Nxd5! is the strong threat.} Qb6 $2 {[%emt 0:03:52] [#]} (23... Kg7 24. Nxd5 (24. Nh5+ Kh8 $16) 24... exd5) 24. Nxe6 $1 {[%emt 0:15:25][%mdl 576] Discovered Attack. White is clearly winning.} Bxe6 {[%emt 0:05:53]} 25. Qxh6 {[%emt 0:00:07]} Rg4 {[%emt 0:02:40]} 26. Bxg4 {[%emt 0:05:17]} fxg4 {[%emt 0:00:01]} 27. Nf4 {[%emt 0:00:10]} Rg8 {[%emt 0:00:55]} 28. Qxh7+ {[%emt 0:05:42]} Ke8 {[%emt 0:00:30]} 29. Qh6 {[%emt 0:00:09]} Kd7 {[%emt 0:00:36]} 30. Nxd5 {[%emt 0:00:16]} Qc6 {[%emt 0:00:10]} 31. Nf4 {[%emt 0:01:29] Strongly threatening d5.} Bd5 {[%emt 0:00:04]} 32. e6+ {[%emt 0:00:28]} Kd8 {[%emt 0:00:01]} 33. Rbc1 {[%emt 0:07:17]} Qd6 {[%emt 0:00:01]} 34. Nxd5 {[%emt 0:02:03]} Qxd5 {[%emt 0:00:02]} 35. Rd2 {[%emt 0:01:25]} Rf8 {[%emt 0:00:31] Inhibits Qf4.} (35... Nc6 $142 36. Qf4 Rf8 37. Qxg4 Rf3) 36. Qe3 {[%emt 0:01:47]} Rf3 {[%emt 0:01:16]} 37. Qe5 {[%emt 0:00:19]} Qd6 {[%emt 0:01:17] Dodges Qb8+} 38. Qa5+ {[%emt 0:02:38]} Ke8 {[%emt 0:00:02]} 39. Qh5+ {[%emt 0:00:07]} Kd8 {[%emt 0:00:19]} 40. Qxg4 {[%emt 0:00:30]} Rf6 {[%emt 0:00:06]} 41. d5 {[%emt 0:00:33]} Nb5 {[%emt 0:01:57]} 42. Rdc2 {[%emt 0:00:52][%csl Gc1][%cal Rc2c8]} Na7 {[%emt 0:00:01] [#] Inhibits Rc8+.} 43. Rc7 $1 {[%emt 0:02:39]} Qxc7 {[%emt 0:00:20]} 44. Rxc7 {[%emt 0:00:08]} Kxc7 {[%emt 0:00:02]} 45. h5 {[%emt 0:00:02][%cal Bh4h5,Bh5h6][%mdl 32]} Nb5 {[%emt 0:00:56] [#]} 46. h6 $1 {[%emt 0:00:17] An exciting game.   Weighted Error Value: White=0.90/Black=0.88} 1-0

[Event "20th Delhi GM Open 2023"]
[Site "New Delhi"]
[Date "2023.03.25"]
[Round "4.6"]
[White "Sarthak Rawat"]
[Black "Murzin, Volodar"]
[Result "0-1"]
[ECO "B91"]
[WhiteElo "1890"]
[BlackElo "2554"]
[Annotator "TA"]
[PlyCount "82"]
[EventDate "2023.03.23"]
[EventType "swiss"]
[EventCountry "IND"]
[SourceTitle "playchess.com"]
[Source "ChessBase"]
[SourceQuality "1"]
[TimeControl "5400+30"]

{[%evp 11,82,23,68,39,25,35,43,25,52,0,0,0,0,-55,-41,-49,-31,-47,-13,-28,-24,-35,-17,-23,0,-41,-38,-42,-31,-37,-33,-68,-37,-39,-21,-34,-30,-42,-39,-44,-23,-40,-20,-10,-13,-18,-34,-37,-14,-10,-15,-147,-143,-249,-245,-331,-323,-338,-238,-235,-239,-228,-225,-238,-241,-265,-254,-266,-249,-262,-267,-591,-594]} 1. e4 {[%emt 0:00:03]} c5 {[%emt 0:00:23]} 2. Nf3 {[%emt 0:00:40]} d6 {[%emt 0:00:06]} 3. d4 {[%emt 0:00:23]} cxd4 {[%emt 0:00:05]} 4. Nxd4 {[%emt 0:00:07]} Nf6 {[%emt 0:00:05]} 5. Nc3 {[%emt 0:00:07]} a6 {[%emt 0:00:13]} 6. g3 {[%emt 0:02:03]} Bg4 {[%emt 0:17:35]} 7. Be2 {[%emt 0:05:07] [#] B91: Sicilian Najdorf: 6 g3.} (7. f3 $5 {[%cal Rf3g4]} Bd7 8. Be3 $14) 7... Bxe2 $146 {[%emt 0:04:28]} ({Predecessor:} 7... Bh3 8. Bf3 Qc8 9. Bg5 Nbd7 10. Qd2 Ne5 11. Rg1 Nxf3+ 12. Nxf3 Qg4 13. Bxf6 Qxf3 14. Bd4 Rc8 {0-1 Grabin,H-Veit,D (2119) Gaucho-ch 64th 2009 (4)}) 8. Qxe2 {[%emt 0:00:39]} g6 {[%emt 0:00:09]} 9. Be3 {[%emt 0:09:08] White is slightly better.} Bg7 {[%emt 0:00:49]} 10. a4 {[%emt 0:04:58]} (10. O-O-O $14) 10... O-O $11 {[%emt 0:00:49]} 11. O-O {[%emt 0:00:24]} Nbd7 {[%emt 0:00:44][%cal Bb8d7,Bd7e5,Be5c4,Bc4a5,Ba5c6][%mdl 32]} 12. Rad1 {[%emt 0:03:09]} (12. Nb3 $11) 12... Rc8 $15 {[%emt 0:01:19][%cal Oc8c3]} 13. f3 {[%emt 0:06:38]} Ne5 {[%emt 0:04:58]} (13... Nb6 $5 {[%cal Rb6c4]}) 14. Kg2 {[%emt 0:01:47]} Nfd7 15. f4 {[%emt 0:10:54]} Nc4 {[%emt 0:10:57]} 16. Bc1 {[%emt 0:00:18]} e6 {[%emt 0:12:47]} 17. b3 {[%emt 0:07:38]} Na5 {[%emt 0:13:07]} (17... Qb6 $5 {[%cal Rg7d4]} 18. Qf2 Na5 $11) 18. Nb1 {[%emt 0:05:13]} Qc7 {[%emt 0:07:36]} 19. Na3 {[%emt 0:08:48]} d5 {[%emt 0:14:27]} 20. e5 {[%emt 0:05:36]} Nc6 {[%emt 0:00:11]} 21. Be3 {[%emt 0:04:11]} Rfd8 {[%emt 0:01:01]} 22. Rc1 {[%emt 0:08:35]} Nc5 {[%emt 0:01:01]} 23. Rfd1 {[%emt 0:02:11]} Bf8 {[%emt 0:03:27][%cal Oc5a4]} 24. Nb1 $1 {[%emt 0:00:48]} Ne4 {[%emt 0:02:21]} 25. c4 {[%emt 0:02:42]} Qa5 {[%emt 0:00:54]} 26. Nf3 {[%emt 0:04:05]} Bc5 {[%emt 0:01:41]} 27. cxd5 {[%emt 0:02:09]} exd5 {[%emt 0:00:29]} 28. Bxc5 {[%emt 0:02:19]} Nxc5 {[%emt 0:00:02]} 29. Qe3 {[%emt 0:01:12]} Ne7 {[%emt 0:01:57] Strongly threatening ...Nf5.} 30. Nd4 {[%emt 0:01:15][%cal Of4f5]} Ne6 {[%emt 0:00:05]} 31. g4 {[%emt 0:01:00] [#]} (31. Nxe6 $11 fxe6 32. Rxc8 Rxc8 33. Rc1) 31... Rxc1 $1 $17 {[%emt 0:00:42]} 32. Rxc1 {[%emt 0:00:06]} (32. Qxc1 $17 Qb6 33. Nxe6) 32... Qb6 $19 {[%emt 0:00:15]} 33. Rd1 {[%emt 0:00:35] [#]} Nc6 $1 {[%emt 0:00:06][%cal Re6d4]} 34. Nf5 {[%emt 0:01:15][%cal Bd4f5,Bf5e3,Be3c4,Bc4d6][%mdl 32]} Qxe3 {[%emt 0:01:49]} 35. Nxe3 {[%emt 0:00:04]} d4 {[%emt 0:00:34]} ({Worse is} 35... Nxf4+ 36. Kg3 g5 37. Nf5) 36. Nc4 {[%emt 0:00:39]} Nxf4+ {[%emt 0:00:01]} 37. Kf3 {[%emt 0:00:08]} Ne6 {[%emt 0:00:35]} 38. Re1 {[%emt 0:00:40]} Nc5 {[%emt 0:01:01]} 39. Nbd2 {[%emt 0:00:16]} b5 {[%emt 0:00:03]} 40. axb5 {[%emt 0:00:21]} axb5 {[%emt 0:00:01]} 41. Nd6 {[%emt 0:01:05]} (41. Na3 {is a better chance.}) 41... Nd3 {[%emt 0:00:08][%csl LRe1,LRe5] Black took control after the opening.   Weighted Error Value: White=0.33/Black=0.13 (very precise)} 0-1

[Event "20th Delhi GM Open 2023"]
[Site "New Delhi"]
[Date "2023.03.25"]
[Round "4.7"]
[White "Savchenko, Boris"]
[Black "Himanshu Ranjan"]
[Result "1-0"]
[ECO "B09"]
[WhiteElo "2552"]
[BlackElo "1860"]
[Annotator "TA"]
[PlyCount "101"]
[EventDate "2023.03.23"]
[EventType "swiss"]
[EventCountry "IND"]
[SourceTitle "playchess.com"]
[Source "ChessBase"]
[SourceQuality "1"]
[TimeControl "5400+30"]

{[%evp 16,101,31,27,27,42,83,87,102,104,107,113,127,122,168,122,118,115,152,79,152,164,183,66,99,76,137,125,144,137,132,118,123,89,102,79,104,87,100,81,117,97,120,48,95,89,89,87,109,110,101,99,118,103,98,118,106,0,8,0,216,216,374,364,418,401,554,557,561,552,757,797,753,746,1069,1008,1212,1216,1184,1151,29972,29971,29975,29976,6103,6103,29988,29989]} 1. e4 {[%emt 0:00:02]} g6 {[%emt 0:00:12]} 2. d4 {[%emt 0:01:08]} Bg7 {[%emt 0:00:06]} 3. Nc3 {[%emt 0:01:17]} d6 {[%emt 0:00:01]} 4. f4 {[%emt 0:02:01]} Nf6 {[%emt 0:00:10]} 5. Nf3 {[%emt 0:00:14]} O-O {[%emt 0:00:28]} 6. Bd3 {[%emt 0:00:20]} Na6 {[%emt 0:03:41]} 7. O-O {[%emt 0:00:23]} c5 {[%emt 0:00:23]} 8. d5 {[%emt 0:00:10]} Nc7 {[%emt 0:03:40]} 9. a4 {[%emt 0:05:26]} Na6 {[%emt 0:04:15] B09: Pirc Defence: Austrian Attack.} 10. Bc4 {[%emt 0:17:07]} Bg4 {[%emt 0:08:39]} 11. h3 {[%emt 0:04:47]} Bxf3 {[%emt 0:03:24] White is better.} 12. Qxf3 {[%emt 0:05:41]} Nb4 {[%emt 0:03:07] [#]} 13. Rf2 $146 ({Predecessor:} 13. Qe2 Re8 14. e5 Nd7 15. e6 fxe6 16. Qxe6+ Kh8 17. Bb5 Nxc2 18. Rb1 Nf6 19. Bxe8 Qxe8 20. Nb5 {½-½ Brayman,N (1736)-Korinek,J (1599) SC-2013-0-00196}) 13... Nd7 {[%emt 0:07:03]} 14. Nd1 {[%emt 0:14:53]} Qc7 {[%emt 0:08:32]} (14... Na6 $16 {might work better.}) 15. g4 {[%emt 0:13:42]} (15. c3 $18) 15... Nb6 $16 {[%emt 0:08:54]} 16. Bf1 {[%emt 0:00:35]} (16. Ne3 Nxc4 17. Nxc4 Na6) 16... a5 {[%emt 0:03:16]} 17. Be3 {[%emt 0:11:58]} (17. c3 $142) 17... Rac8 {[%emt 0:05:21]} (17... f5 $142) 18. c3 {[%emt 0:01:18]} Na6 {[%emt 0:00:16] [#]} 19. b3 {[%emt 0:00:21]} (19. h4 $1 $18) 19... Nb8 {[%emt 0:06:04]} 20. Raa2 {[%emt 0:01:05]} N8d7 {[%emt 0:00:35]} (20... e6 $142) 21. c4 {[%emt 0:01:14]} Rce8 {[%emt 0:01:45]} 22. h4 {[%emt 0:02:38]} e6 {[%emt 0:01:43]} 23. g5 {[%emt 0:00:44]} exd5 {[%emt 0:06:23]} 24. cxd5 {[%emt 0:00:07]} f5 {[%emt 0:03:40] [#]} 25. exf5 {[%emt 0:00:37]} (25. gxf6 $6 Nxf6 26. Bd3 Qe7 $11) 25... Rxf5 {[%emt 0:01:28]} 26. Rad2 {[%emt 0:00:22]} Nf8 {[%emt 0:00:33]} 27. Bh3 {[%emt 0:01:46]} Rf7 {[%emt 0:00:09]} 28. h5 {[%emt 0:07:14]} Nbd7 {[%emt 0:01:38]} 29. Bf1 {[%emt 0:02:06]} (29. Rde2 $16) 29... Ree7 {[%emt 0:03:26]} (29... gxh5 $14 30. Bb5 (30. Qxh5 Bd4 $14) 30... Bd4) 30. Bb5 {[%emt 0:00:37]} Qc8 {[%emt 0:00:57]} 31. Qh3 {[%emt 0:02:57]} Nb6 {[%emt 0:01:06]} 32. Qxc8 {[%emt 0:00:07]} Nxc8 {[%emt 0:00:02]} 33. h6 {[%emt 0:01:11]} Bh8 {[%emt 0:00:08]} 34. Kg2 {[%emt 0:01:02] White is more active.} Nb6 {[%emt 0:00:55]} 35. Rd3 {[%emt 0:00:31]} Nfd7 {[%emt 0:01:26]} 36. Bd2 {[%emt 0:00:45]} (36. Rf3 $16) 36... Bd4 $11 {[%emt 0:01:41]} 37. Rff3 {[%emt 0:00:20]} Rf5 $2 {[%emt 0:00:39]} (37... Nxd5 $11 {and Black has nothing to worry.} 38. Kg3 Nc7) 38. Ne3 $18 {[%emt 0:00:50]} ({Resist} 38. Bxa5 $6 Ref7) 38... Bxe3 {[%emt 0:06:24]} (38... Rff7 39. Bxa5 Rf8) 39. Rfxe3 {[%emt 0:00:36]} ({Don't do} 39. Rdxe3 Rxe3 40. Rxe3 Rxf4 $18) 39... Rxe3 {[%emt 0:00:02]} 40. Rxe3 {[%emt 0:00:25]} Rxd5 {[%emt 0:00:24]} 41. Bxa5 {[%emt 0:00:47]} Kf7 {[%emt 0:00:02] Prevents Re7+} 42. Kg3 {[%emt 0:00:58] Threatens to win with Bxb6.} Rd1 {[%emt 0:00:35]} 43. Bxb6 {[%emt 0:00:29]} Nxb6 {[%emt 0:00:03][%mdl 4096] Endgame KRB-KRN} 44. Re8 {[%emt 0:00:24]} Rb1 {[%emt 0:01:57]} 45. Rb8 {[%emt 0:00:38]} Nd5 {[%emt 0:06:03]} 46. Bc4 {[%emt 0:00:22]} Rd1 {[%emt 0:01:26]} 47. Rxb7+ {[%emt 0:00:09]} Ke6 {[%emt 0:00:36]} 48. Rxh7 {[%emt 0:00:10]} Kf5 {[%emt 0:00:11]} 49. Bxd5 {[%emt 0:00:17]} Rxd5 {[%emt 0:00:04]} 50. Rf7+ {[%emt 0:00:07]} Ke6 {[%emt 0:00:20]} 51. Rf6+ {[%emt 0:00:08] Weighted Error Value: White=0.16 (very precise) /Black=0.70} 1-0